fUSD/lending_fUSD_20240406
["ID","MTS","AMOUNT","RATE_DAILY","PERIOD"]
[321710606,1712428232459,-2639.73,0.00021474,2]
[321710607,1712428232468,-150.99,0.00021474,2]
[321710608,1712428232476,-150.99,0.00021474,2]
[321710609,1712428232486,-150.0,0.00021531,2]
[321710610,1712428232495,-499.99,0.00021535,2]
[321710611,1712428232504,-792.09566138,0.00021536,2]
[321710612,1712428232514,-255.3859,0.00021536,2]
[321710613,1712428232523,-1474.454,0.00021536,2]
[321710614,1712428232532,-1000.0,0.00021625,2]
[321710615,1712428232542,-27131.09168781,0.00021626,2]
[321710616,1712428232551,-155.0,0.00021634,2]
[321710617,1712428232561,-778.55215115,0.00021634,2]
[321710618,1712428232570,-155.0,0.00021634,2]
[321710619,1712428232580,-2346.52563325,0.00021634,2]
[321710620,1712428232589,-155.0,0.00021635,2]
[321710622,1712428232598,-504.31382431,0.00021635,2]
[321710624,1712428232607,-8892.88281819,0.00021636,2]
[321710625,1712428232616,-688.16436,0.0002164,2]
[321710626,1712428232625,-170.3,0.00021644,2]
[321710627,1712428232635,-562.77464044,0.00021644,2]
[321710628,1712428232644,-8317.69026491,0.00021653,2]
[321710629,1712428232653,-395.64817508,0.00021653,2]
[321710630,1712428232662,-500.0,0.00021653,2]
[321710631,1712428232671,-500.0,0.00021653,2]
[321710632,1712428232680,-183.95319212,0.00021653,2]
[321710633,1712428232689,-626630.26056896,0.00021654,2]
[321710634,1712428232702,-654.95581254,0.00021654,2]
[321710638,1712428232723,-270.38829693,0.00021654,2]
[321710640,1712428232734,-7603.85073837,0.00021654,2]
[321710642,1712428232746,-20711.57943779,0.00021654,2]
[321710644,1712428232757,-867.67329241,0.00021654,2]
[321710647,1712428234449,182.18,0.00020683,2]
[321710654,1712428238218,-596.04655466,0.00021654,2]
[321710658,1712428238257,-380.04,0.00021654,2]
[321710660,1712428238270,-385.46466382,0.00021654,2]
[321710664,1712428238315,-412.5504,0.00021654,2]
[321710666,1712428238327,-252.744,0.00021654,2]
[321710671,1712428238370,-1254.05060212,0.00021654,2]
[321710672,1712428238382,-1942.27602826,0.00021654,2]
[321710674,1712428238393,-888.95229078,0.00021654,2]
[321710675,1712428238426,-1542.87252878,0.00021654,2]
[321710676,1712428238572,-140655.84125405,0.00021654,2]
[321710677,1712428238581,-24229.97254866,0.00021655,2]
[321710678,1712428238591,-688.16436,0.0002175,2]
[321710679,1712428238600,-4328.42279815,0.00021753,2]
[321710680,1712428238609,-178.4391163,0.00021753,2]
[321710681,1712428238619,-1708.68527017,0.00021753,2]
[321710682,1712428238628,-181.08302386,0.00021753,2]
[321710683,1712428238638,-154.29891153,0.00021755,2]
[321710684,1712428238650,-192.9080552,0.00021755,2]
[321710685,1712428238660,-184.84070755,0.00021755,2]
[321710686,1712428238670,-173.70619216,0.00021756,2]
[321710687,1712428238681,-157.86553342,0.00021756,2]
[321710688,1712428238691,-3541.8188107,0.00021756,2]
[321710689,1712428238702,-3541.8188107,0.00021758,2]
[321710690,1712428238713,-3541.8188107,0.0002176,2]
[321710691,1712428238722,-362.65169502,0.0002176,2]
[321710692,1712428238733,-356.0,0.000218,2]
[321710693,1712428238744,-170.3,0.00021846,2]
[321710694,1712428238756,-260.83344969,0.00021853,2]
[321710695,1712428238766,-184.56395466,0.00021853,2]
[321710696,1712428238777,-155.38226239,0.00021853,2]
[321710697,1712428238788,-156.16157304,0.00021853,2]
[321710698,1712428238798,-353.8421837,0.00021853,2]
[321710699,1712428238807,-155.6403865,0.00021853,2]
[321710700,1712428238817,-156.78029353,0.00021853,2]
[321710701,1712428238829,-4021.04680317,0.00021853,2]
[321710702,1712428238840,-155.93951836,0.00021853,2]
[321710703,1712428238851,-407.1301357,0.00021853,2]
[321710704,1712428238861,-404.3815207,0.00021853,2]
[321710705,1712428238872,-857.17181074,0.00021853,2]
[321710706,1712428238884,-155.0,0.00021853,2]
[321710707,1712428238894,-312.4020961,0.00021853,2]
[321710708,1712428238902,-208.20199114,0.00021853,2]
[321710709,1712428238915,-1000.0,0.00021854,2]
[321710710,1712428238925,-8876.86331766,0.00021855,2]
[321710711,1712428238934,-522.19761205,0.00021855,2]
[321710712,1712428238944,-503.78712459,0.00021855,2]
[321710713,1712428238961,-3071.96048349,0.00021855,2]
[321710714,1712428238976,-1066.2218161,0.00021855,2]
[321710715,1712428238990,-500.0,0.00021855,2]
[321710716,1712428239005,-400.0,0.00021855,2]
[321710717,1712428239018,-797.82457019,0.00021855,2]
[321710718,1712428239030,-155.8039683,0.00021855,2]
[321710719,1712428239043,-5369.66402498,0.00021855,2]
[321710720,1712428239053,-156.90982687,0.00021855,2]
[321710721,1712428239066,-1888.30959056,0.00021855,2]
[321710722,1712428239079,-457.61603356,0.00021855,2]
[321710723,1712428239091,-180.45952597,0.00021855,2]
[321710724,1712428239103,-324.73348101,0.00021855,2]
[321710725,1712428239115,-4543.97228953,0.00021856,2]
[321710726,1712428239128,-429183.38002655,0.00021856,2]
[321710727,1712428239140,-785.24751389,0.00021893,2]
[321710728,1712428239152,-1641.0,0.000219,2]
[321710729,1712428239163,-431.41220759,0.000219,2]
[321710730,1712428239173,-431.41220759,0.000219,2]
[321710731,1712428239188,-431.41220759,0.000219,2]
[321710732,1712428239200,-431.41220759,0.000219,2]
[321710733,1712428239212,-431.41220759,0.000219,2]
[321710734,1712428239223,-431.41220759,0.000219,2]
[321710735,1712428239235,-431.41220759,0.000219,2]
[321710736,1712428239246,-431.41220759,0.000219,2]
[321710737,1712428239258,-431.41220759,0.000219,2]
[321710738,1712428239271,-431.41220759,0.000219,2]
[321710739,1712428239282,-431.41220759,0.000219,2]
[321710740,1712428239293,-431.41220759,0.000219,2]
[321710741,1712428239303,-431.41220759,0.000219,2]
[321710742,1712428239314,-431.41220759,0.000219,2]
[321710743,1712428239328,-431.41220759,0.000219,2]
[321710744,1712428239339,-431.41220759,0.000219,2]
[321710745,1712428239352,-431.41220759,0.000219,2]
[321710746,1712428239368,-431.41220759,0.000219,2]
[321710747,1712428239382,-431.41220759,0.000219,2]
[321710748,1712428239395,-431.41220759,0.000219,2]
[321710749,1712428239407,-431.41220759,0.000219,2]
[321710750,1712428239419,-431.41220759,0.000219,2]
[321710751,1712428239430,-431.41220759,0.000219,2]
[321710752,1712428239443,-431.41220759,0.000219,2]
[321710753,1712428239454,-431.41220759,0.000219,2]
[321710754,1712428239467,-431.41220759,0.000219,2]
[321710755,1712428239479,-431.41220759,0.000219,2]
[321710756,1712428239492,-431.41220759,0.000219,2]
[321710757,1712428239504,-431.41220759,0.000219,2]
[321710758,1712428239517,-431.41220759,0.000219,2]
[321710759,1712428239529,-562.77464044,0.00021907,2]
[321710760,1712428239541,-688.16436,0.0002191,2]
[321710761,1712428239552,-500.0,0.00021917,2]
[321710762,1712428239562,-500.0,0.00021917,2]
[321710763,1712428239573,-500.0,0.00021917,2]
[321710764,1712428239583,-500.0,0.00021917,2]
[321710765,1712428239594,-500.0,0.00021917,2]
[321710766,1712428239606,-556.24052441,0.00021917,2]
[321710767,1712428239617,-500.0,0.00021917,2]
[321710768,1712428239628,-500.0,0.00021917,2]
[321710769,1712428239639,-645.73414782,0.00021917,2]
[321710770,1712428239653,-500.0,0.00021917,2]
[321710771,1712428239666,-500.0,0.00021917,2]
[321710772,1712428239676,-500.0,0.00021917,2]
[321710773,1712428239686,-500.0,0.00021917,2]
[321710774,1712428239696,-500.0,0.00021917,2]
[321710775,1712428239706,-579.04,0.00021917,2]
[321710776,1712428239716,-500.0,0.00021917,2]
[321710777,1712428239727,-513.16529461,0.00021917,2]
[321710778,1712428239738,-500.0,0.00021917,2]
[321710779,1712428239749,-301.27430147,0.00021917,2]
[321710780,1712428239761,-500.0,0.00021917,2]
[321710781,1712428239778,-500.0,0.00021917,2]
[321710782,1712428239790,-620.50396506,0.00021917,2]
[321710783,1712428239801,-500.0,0.00021917,2]
[321710784,1712428239812,-517.89,0.00021917,2]
[321710785,1712428239823,-513.87108327,0.00021917,2]
[321710786,1712428239835,-500.0,0.00021917,2]
[321710787,1712428239846,-500.0,0.00021917,2]
[321710788,1712428239857,-300.45085215,0.00021917,2]
[321710789,1712428239869,-515.2454962,0.00021917,2]
[321710790,1712428239880,-643.7121135,0.00021917,2]
[321710791,1712428239891,-500.0,0.00021917,2]
[321710792,1712428239902,-500.0,0.00021917,2]
[321710793,1712428239913,-262.13594436,0.00021917,2]
[321710794,1712428239934,-528.85681998,0.00021917,2]
[321710795,1712428239949,-544.1195656,0.00021917,2]
[321710796,1712428239962,-500.0,0.00021917,2]
[321710797,1712428239974,-503.9608,0.00021917,2]
[321710798,1712428239987,-500.0,0.00021917,2]
[321710799,1712428240001,-500.0,0.00021917,2]
[321710800,1712428240014,-500.0,0.00021917,2]
[321710801,1712428240026,-500.0,0.00021917,2]
[321710802,1712428240038,-500.0,0.00021917,2]
[321710803,1712428240051,-500.0,0.00021917,2]
[321710804,1712428240062,-500.0,0.00021917,2]
[321710805,1712428240074,-568.27,0.00021917,2]
[321710806,1712428240087,-389.93,0.00021917,2]
[321710807,1712428240098,-500.0,0.00021917,2]
[321710808,1712428240110,-500.0,0.00021917,2]
[321710809,1712428240121,-500.0,0.00021917,2]
[321710810,1712428240132,-500.0,0.00021917,2]
[321710811,1712428240145,-500.0,0.00021917,2]
[321710812,1712428240157,-529.67222673,0.00021917,2]
[321710813,1712428240168,-513.51618901,0.00021917,2]
[321710814,1712428240180,-500.0,0.00021917,2]
[321710815,1712428240191,-500.0,0.00021917,2]
[321710816,1712428240202,-500.0,0.00021917,2]
[321710817,1712428240213,-500.0,0.00021917,2]
[321710818,1712428240225,-513.66955502,0.00021917,2]
[321710819,1712428240236,-515.70120706,0.00021917,2]
[321710820,1712428240248,-599.10791349,0.00021917,2]
[321710821,1712428240259,-520.06870771,0.00021917,2]
[321710822,1712428240270,-500.0,0.00021917,2]
[321710823,1712428240282,-526.65009461,0.00021917,2]
[321710824,1712428240292,-500.0,0.00021917,2]
[321710825,1712428240303,-500.0,0.00021917,2]
[321710826,1712428240313,-500.0,0.00021917,2]
[321710827,1712428240324,-176.26,0.00021917,2]
[321710828,1712428240335,-500.0,0.00021917,2]
[321710829,1712428240346,-500.0,0.00021917,2]
[321710830,1712428240357,-402.04950314,0.00021917,2]
[321710831,1712428240367,-500.0,0.00021917,2]
[321710832,1712428240378,-500.0,0.00021917,2]
[321710833,1712428240389,-500.0,0.00021917,2]
[321710834,1712428240400,-500.0,0.00021917,2]
[321710835,1712428240411,-436.49481554,0.00021917,2]
[321710836,1712428240422,-506.38468549,0.00021917,2]
[321710837,1712428240433,-500.0,0.00021917,2]
[321710838,1712428240444,-500.0,0.00021917,2]
[321710839,1712428240454,-414.97695552,0.00021917,2]
[321710840,1712428240465,-500.0,0.00021917,2]
[321710841,1712428240476,-500.0,0.00021917,2]
[321710842,1712428240487,-500.0,0.00021917,2]
[321710843,1712428240498,-151.90955143,0.00021917,2]
[321710844,1712428240509,-500.0,0.00021917,2]
[321710845,1712428240520,-500.0,0.00021917,2]
[321710846,1712428240531,-500.0,0.00021917,2]
[321710847,1712428240542,-500.0,0.00021917,2]
[321710848,1712428240552,-500.0,0.00021917,2]
[321710849,1712428240562,-500.0,0.00021917,2]
[321710850,1712428240574,-500.0,0.00021917,2]
[321710851,1712428240584,-514.23024801,0.00021917,2]
[321710852,1712428240594,-500.0,0.00021917,2]
[321710853,1712428240605,-500.0,0.00021917,2]
[321710854,1712428240615,-500.0,0.00021917,2]
[321710855,1712428240626,-500.0,0.00021917,2]
[321710856,1712428240637,-500.0,0.00021917,2]
[321710857,1712428240647,-500.0,0.00021917,2]
[321710858,1712428240658,-500.0,0.00021917,2]
[321710859,1712428240668,-500.0,0.00021917,2]
[321710860,1712428240680,-500.0,0.00021917,2]
[321710861,1712428240690,-500.0,0.00021917,2]
[321710862,1712428240701,-500.0,0.00021917,2]
[321710863,1712428240713,-500.0,0.00021917,2]
[321710864,1712428240725,-500.0,0.00021917,2]
[321710865,1712428240736,-500.0,0.00021917,2]
[321710866,1712428240747,-500.0,0.00021917,2]
[321710867,1712428240758,-285.15236229,0.00021917,2]
[321710868,1712428240769,-500.0,0.00021917,2]
[321710869,1712428240780,-500.0,0.00021917,2]
[321710870,1712428240791,-500.0,0.00021917,2]
[321710871,1712428240802,-500.0,0.00021917,2]
[321710872,1712428240814,-500.0,0.00021917,2]
[321710873,1712428240825,-500.0,0.00021917,2]
[321710874,1712428240837,-545.22516203,0.00021917,2]
[321710875,1712428240848,-500.0,0.00021917,2]
[321710876,1712428240858,-500.0,0.00021917,2]
[321710877,1712428240870,-500.0,0.00021917,2]
[321710878,1712428240880,-500.0,0.00021917,2]
[321710879,1712428240892,-500.0,0.00021917,2]
[321710880,1712428240901,-500.0,0.00021917,2]
[321710881,1712428240910,-534.69503274,0.00021917,2]
[321710882,1712428240919,-524.6489534,0.00021917,2]
[321710883,1712428240928,-500.0,0.00021917,2]
[321710884,1712428240938,-500.0,0.00021917,2]
[321710885,1712428240946,-500.0,0.00021917,2]
[321710886,1712428240955,-500.0,0.00021917,2]
[321710887,1712428240964,-500.0,0.00021917,2]
[321710888,1712428240974,-567.34,0.00021917,2]
[321710889,1712428241217,-500.0,0.00021917,2]
[321710890,1712428241229,-500.0,0.00021917,2]
[321710891,1712428241239,-523.51380216,0.00021917,2]
[321710892,1712428241249,-500.0,0.00021917,2]
[321710893,1712428241259,-500.0,0.00021917,2]
[321710894,1712428241269,-500.0,0.00021917,2]
[321710895,1712428241278,-500.0,0.00021917,2]
[321710896,1712428241288,-500.0,0.00021917,2]
[321710897,1712428241298,-500.0,0.00021917,2]
[321710898,1712428241307,-500.0,0.00021917,2]
[321710899,1712428241317,-500.0,0.00021917,2]
[321710900,1712428241326,-500.0,0.00021917,2]
[321710901,1712428241336,-500.0,0.00021917,2]
[321710902,1712428241345,-500.0,0.00021917,2]
[321710903,1712428241354,-500.0,0.00021917,2]
[321710904,1712428241363,-500.0,0.00021917,2]
[321710905,1712428241372,-500.0,0.00021917,2]
[321710906,1712428241381,-500.0,0.00021917,2]
[321710907,1712428241390,-500.0,0.00021917,2]
[321710908,1712428241399,-500.0,0.00021917,2]
[321710909,1712428241409,-500.0,0.00021917,2]
[321710910,1712428241418,-245.72293429,0.00021917,2]
[321710911,1712428241427,-500.0,0.00021917,2]
[321710912,1712428241436,-500.0,0.00021917,2]
[321710913,1712428241446,-519.55744,0.00021917,2]
[321710914,1712428241455,-500.0,0.00021917,2]
[321710915,1712428241464,-500.0,0.00021917,2]
[321710916,1712428241473,-500.0,0.00021917,2]
[321710917,1712428241482,-500.0,0.00021917,2]
[321710918,1712428241491,-168.55715376,0.00021917,2]
[321710919,1712428241501,-500.0,0.00021917,2]
[321710920,1712428241510,-500.0,0.00021917,2]
[321710921,1712428241519,-500.0,0.00021917,2]
[321710922,1712428241528,-500.0,0.00021917,2]
[321710923,1712428241537,-500.0,0.00021917,2]
[321710924,1712428241547,-500.0,0.00021917,2]
[321710925,1712428241556,-500.0,0.00021917,2]
[321710926,1712428241566,-500.0,0.00021917,2]
[321710927,1712428241575,-500.0,0.00021917,2]
[321710928,1712428241584,-500.0,0.00021917,2]
[321710929,1712428241593,-199.56493157,0.00021917,2]
[321710930,1712428241602,-500.0,0.00021917,2]
[321710931,1712428241611,-500.0,0.00021917,2]
[321710932,1712428241620,-500.0,0.00021917,2]
[321710933,1712428241629,-500.0,0.00021917,2]
[321710934,1712428241638,-500.0,0.00021917,2]
[321710935,1712428241648,-500.0,0.00021917,2]
[321710936,1712428241657,-500.0,0.00021917,2]
[321710937,1712428241666,-500.0,0.00021917,2]
[321710938,1712428241675,-500.0,0.00021917,2]
[321710939,1712428241684,-517.52354831,0.00021917,2]
[321710940,1712428241694,-500.0,0.00021917,2]
[321710941,1712428241703,-500.0,0.00021917,2]
[321710942,1712428241712,-500.0,0.00021917,2]
[321710943,1712428241721,-511.16545638,0.00021917,2]
[321710944,1712428241731,-500.0,0.00021917,2]
[321710945,1712428241744,-641.48,0.00021917,2]
[321710946,1712428241754,-500.0,0.00021917,2]
[321710947,1712428241763,-500.0,0.00021917,2]
[321710948,1712428241772,-500.0,0.00021917,2]
[321710949,1712428241781,-547.49773559,0.00021917,2]
[321710950,1712428241790,-512.90171749,0.00021917,2]
[321710951,1712428241800,-500.0,0.00021917,2]
[321710952,1712428241809,-500.0,0.00021917,2]
[321710953,1712428241818,-500.0,0.00021917,2]
[321710954,1712428241827,-500.0,0.00021917,2]
[321710955,1712428241837,-500.0,0.00021917,2]
[321710956,1712428241846,-500.0,0.00021917,2]
[321710957,1712428241855,-500.0,0.00021917,2]
[321710958,1712428241866,-500.0,0.00021917,2]
[321710959,1712428241875,-465.0222168,0.00021917,2]
[321710960,1712428241884,-500.0,0.00021917,2]
[321710961,1712428241893,-500.0,0.00021917,2]
[321710962,1712428241902,-500.0,0.00021917,2]
[321710963,1712428241911,-500.0,0.00021917,2]
[321710964,1712428241920,-500.0,0.00021917,2]
[321710965,1712428241929,-500.0,0.00021917,2]
[321710966,1712428241938,-500.0,0.00021917,2]
[321710967,1712428241947,-500.0,0.00021917,2]
[321710968,1712428241956,-500.0,0.00021917,2]
[321710969,1712428241965,-500.0,0.00021917,2]
[321710970,1712428241974,-500.0,0.00021917,2]
[321710971,1712428241982,-500.0,0.00021917,2]
[321710972,1712428241991,-500.0,0.00021917,2]
[321710973,1712428242002,-500.0,0.00021917,2]
[321710974,1712428242013,-500.0,0.00021917,2]
[321710975,1712428242022,-500.0,0.00021917,2]
[321710976,1712428242031,-500.0,0.00021917,2]
[321710977,1712428242040,-251.18539573,0.00021917,2]
[321710978,1712428242049,-500.0,0.00021917,2]
[321710979,1712428242058,-500.0,0.00021917,2]
[321710980,1712428242067,-500.0,0.00021917,2]
[321710981,1712428242077,-500.0,0.00021917,2]
[321710982,1712428242086,-636.6210463,0.00021917,2]
[321710983,1712428242095,-525.14839083,0.00021917,2]
[321710984,1712428242104,-1468.94,0.00021917,2]
[321710985,1712428242114,-1468.94,0.00021917,2]
[321710986,1712428242124,-500.0,0.00021917,2]
[321710987,1712428242133,-1468.94,0.00021917,2]
[321710988,1712428242142,-1468.94,0.00021917,2]
[321710989,1712428242153,-500.0,0.00021917,2]
[321710990,1712428242164,-1468.94,0.00021917,2]
[321710991,1712428242175,-500.0,0.00021917,2]
[321710992,1712428242185,-1468.94,0.00021917,2]
[321710993,1712428242194,-1468.94,0.00021917,2]
[321710994,1712428242204,-508.66306409,0.00021917,2]
[321710995,1712428242215,-500.0,0.00021917,2]
[321710996,1712428242226,-500.0,0.00021917,2]
[321710997,1712428242235,-500.0,0.00021917,2]
[321710998,1712428242245,-500.0,0.00021917,2]
[321710999,1712428242254,-500.0,0.00021917,2]
[321711000,1712428242263,-513.45366732,0.00021917,2]
[321711001,1712428242272,-500.0,0.00021917,2]
[321711002,1712428242281,-500.0,0.00021917,2]
[321711003,1712428242290,-500.0,0.00021917,2]
[321711004,1712428242299,-500.0,0.00021917,2]
[321711005,1712428242308,-500.0,0.00021917,2]
[321711006,1712428242318,-500.0,0.00021917,2]
[321711007,1712428242327,-573.93,0.00021917,2]
[321711008,1712428242336,-500.0,0.00021917,2]
[321711009,1712428242345,-500.0,0.00021917,2]
[321711010,1712428242354,-538.56221635,0.00021917,2]
[321711011,1712428242364,-500.0,0.00021917,2]
[321711012,1712428242373,-500.0,0.00021917,2]
[321711013,1712428242382,-500.0,0.00021917,2]
[321711014,1712428242391,-500.0,0.00021917,2]
[321711015,1712428242400,-500.0,0.00021917,2]
[321711016,1712428242409,-500.0,0.00021917,2]
[321711017,1712428242419,-500.0,0.00021917,2]
[321711018,1712428242428,-500.0,0.00021917,2]
[321711019,1712428242437,-500.0,0.00021917,2]
[321711020,1712428242446,-500.0,0.00021917,2]
[321711021,1712428242455,-500.0,0.00021917,2]
[321711022,1712428242464,-500.0,0.00021917,2]
[321711023,1712428242474,-500.0,0.00021917,2]
[321711024,1712428242483,-500.0,0.00021917,2]
[321711025,1712428242493,-500.0,0.00021917,2]
[321711026,1712428242502,-500.0,0.00021917,2]
[321711027,1712428242511,-500.0,0.00021917,2]
[321711028,1712428242520,-500.0,0.00021917,2]
[321711029,1712428242530,-500.0,0.00021917,2]
[321711030,1712428242539,-500.0,0.00021917,2]
[321711031,1712428242549,-500.0,0.00021917,2]
[321711032,1712428242558,-164.08,0.00021917,2]
[321711033,1712428242568,-500.0,0.00021917,2]
[321711034,1712428242577,-500.0,0.00021917,2]
[321711035,1712428242586,-500.0,0.00021917,2]
[321711036,1712428242595,-541.39849682,0.00021917,2]
[321711037,1712428242604,-500.0,0.00021917,2]
[321711038,1712428242613,-500.0,0.00021917,2]
[321711039,1712428242623,-500.0,0.00021917,2]
[321711040,1712428242632,-500.0,0.00021917,2]
[321711041,1712428242641,-500.0,0.00021917,2]
[321711042,1712428242651,-520.53512455,0.00021917,2]
[321711043,1712428242659,-500.0,0.00021917,2]
[321711044,1712428242668,-500.0,0.00021917,2]
[321711045,1712428242677,-500.0,0.00021917,2]
[321711046,1712428242686,-500.0,0.00021917,2]
[321711047,1712428242696,-500.0,0.00021917,2]
[321711048,1712428242705,-500.0,0.00021917,2]
[321711049,1712428242714,-500.0,0.00021917,2]
[321711050,1712428242723,-500.0,0.00021917,2]
[321711051,1712428242732,-500.0,0.00021917,2]
[321711052,1712428242741,-524.14,0.00021917,2]
[321711053,1712428242751,-500.0,0.00021917,2]
[321711054,1712428242760,-500.0,0.00021917,2]
[321711055,1712428242770,-500.0,0.00021917,2]
[321711056,1712428242779,-500.0,0.00021917,2]
[321711057,1712428242788,-500.0,0.00021917,2]
[321711058,1712428242797,-500.0,0.00021917,2]
[321711059,1712428242806,-500.0,0.00021917,2]
[321711060,1712428242815,-500.0,0.00021917,2]
[321711061,1712428242825,-500.0,0.00021917,2]
[321711062,1712428242834,-500.0,0.00021917,2]
[321711063,1712428242843,-500.0,0.00021917,2]
[321711064,1712428242854,-500.0,0.00021917,2]
[321711065,1712428242863,-500.0,0.00021917,2]
[321711066,1712428242872,-500.0,0.00021917,2]
[321711067,1712428242881,-500.0,0.00021917,2]
[321711068,1712428242891,-500.0,0.00021917,2]
[321711069,1712428242900,-500.0,0.00021917,2]
[321711070,1712428242909,-500.0,0.00021917,2]
[321711071,1712428242918,-150.0,0.00021917,2]
[321711072,1712428242927,-500.0,0.00021917,2]
[321711073,1712428242937,-500.0,0.00021917,2]
[321711074,1712428242946,-500.0,0.00021917,2]
[321711075,1712428242955,-500.0,0.00021917,2]
[321711076,1712428242965,-500.0,0.00021917,2]
[321711077,1712428242974,-500.0,0.00021917,2]
[321711078,1712428242983,-500.0,0.00021917,2]
[321711079,1712428242992,-500.0,0.00021917,2]
[321711080,1712428243003,-500.0,0.00021917,2]
[321711081,1712428243013,-500.0,0.00021917,2]
[321711082,1712428243023,-500.0,0.00021917,2]
[321711083,1712428243032,-500.0,0.00021917,2]
[321711084,1712428243041,-500.0,0.00021917,2]
[321711085,1712428243050,-500.0,0.00021917,2]
[321711086,1712428243059,-500.0,0.00021917,2]
[321711088,1712428243069,-542.32463088,0.00021917,2]
[321711090,1712428243078,-500.0,0.00021917,2]
[321711092,1712428243089,-500.0,0.00021917,2]
[321711094,1712428243099,-500.0,0.00021917,2]
[321711096,1712428243107,-327.39510847,0.00021917,2]
[321711098,1712428243117,-500.0,0.00021917,2]
[321711100,1712428243126,-506.1938183,0.00021917,2]
[321711102,1712428243135,-500.0,0.00021917,2]
[321711104,1712428243145,-500.0,0.00021917,2]
[321711106,1712428243154,-500.0,0.00021917,2]
[321711108,1712428243163,-563.37014628,0.00021917,2]
[321711110,1712428243172,-861.12,0.00021917,2]
[321711112,1712428243181,-861.12,0.00021917,2]
[321711114,1712428243190,-861.12,0.00021917,2]
[321711116,1712428243200,-861.12,0.00021917,2]
[321711118,1712428243209,-500.0,0.00021917,2]
[321711120,1712428243219,-861.12,0.00021917,2]
[321711122,1712428243228,-861.12,0.00021917,2]
[321711125,1712428243238,-861.12,0.00021917,2]
[321711127,1712428243250,-500.0,0.00021917,2]
[321711129,1712428243259,-221.30515385,0.00021917,2]
[321711131,1712428243269,-500.0,0.00021917,2]
[321711133,1712428243278,-573.35,0.00021917,2]
[321711135,1712428243287,-500.0,0.00021917,2]
[321711137,1712428243296,-500.0,0.00021917,2]
[321711138,1712428243306,-500.0,0.00021917,2]
[321711139,1712428243316,-500.0,0.00021917,2]
[321711140,1712428243327,-500.0,0.00021917,2]
[321711141,1712428243338,-500.0,0.00021917,2]
[321711142,1712428243347,-545.77696429,0.00021917,2]
[321711143,1712428243356,-500.0,0.00021917,2]
[321711144,1712428243366,-500.0,0.00021917,2]
[321711145,1712428243376,-500.0,0.00021917,2]
[321711146,1712428243385,-500.0,0.00021917,2]
[321711147,1712428243394,-196.63520489,0.00021917,2]
[321711148,1712428243404,-500.0,0.00021917,2]
[321711149,1712428243414,-600.19,0.00021917,2]
[321711150,1712428243423,-500.0,0.00021917,2]
[321711151,1712428243432,-500.0,0.00021917,2]
[321711152,1712428243442,-500.0,0.00021917,2]
[321711153,1712428243451,-500.0,0.00021917,2]
[321711154,1712428243461,-500.0,0.00021917,2]
[321711155,1712428243471,-500.0,0.00021917,2]
[321711156,1712428243480,-500.0,0.00021917,2]
[321711157,1712428243491,-500.0,0.00021917,2]
[321711158,1712428243502,-500.0,0.00021917,2]
[321711159,1712428243510,-500.0,0.00021917,2]
[321711160,1712428243520,-500.0,0.00021917,2]